fUSD/lending_fUSD_20241107
["ID","MTS","AMOUNT","RATE_DAILY","PERIOD"]
[341584890,1731009061320,-655.9,0.00028014,2]
[341584891,1731009061329,-500.0,0.00028014,2]
[341584892,1731009061340,-500.0,0.00028014,2]
[341584893,1731009061350,-904.77,0.00028014,2]
[341584894,1731009061360,-3683.44,0.00028014,2]
[341584895,1731009061371,-587.57,0.00028014,2]
[341584896,1731009061381,-581.53,0.00028014,2]
[341584897,1731009061391,-603.04,0.00028014,2]
[341584898,1731009061400,-500.0,0.00028014,2]
[341584899,1731009061410,-660.62,0.00028014,2]
[341584900,1731009061420,-500.0,0.00028014,2]
[341584901,1731009061429,-849.52,0.00028014,2]
[341584902,1731009061438,-500.0,0.00028014,2]
[341584903,1731009061448,-160.525,0.0002806,4]
[341584904,1731009061457,-169.0188,0.0002807,2]
[341584905,1731009061467,-500.0,0.00028073,5]
[341584906,1731009061476,-160.22998122,0.00028073,5]
[341584907,1731009061486,-500.0,0.00028073,5]
[341584908,1731009061495,-500.0,0.00028073,5]
[341584909,1731009061505,-500.0,0.00028073,5]
[341584910,1731009061514,-2110.0,0.00028085,2]
[341584911,1731009061524,-151.0,0.00028085,7]
[341584912,1731009061533,-500.0,0.00028087,2]
[341584913,1731009061543,-500.0,0.00028088,2]
[341584914,1731009061552,-530.28,0.00028088,2]
[341584915,1731009061562,-738.77,0.00028088,2]
[341584916,1731009061572,-571.57,0.00028088,2]
[341584917,1731009061583,-500.0,0.00028088,2]
[341584918,1731009061592,-1251.19,0.00028088,2]
[341584919,1731009061601,-696.9,0.00028088,2]
[341584920,1731009061611,-500.0,0.00028088,2]
[341584921,1731009061622,-500.0,0.00028088,2]
[341584922,1731009061631,-948.64,0.00028088,2]
[341584923,1731009061641,-500.0,0.00028088,2]
[341584924,1731009061651,-574.26,0.00028088,2]
[341584925,1731009061661,-500.0,0.00028088,2]
[341584926,1731009061672,-584.31,0.00028088,2]
[341584927,1731009061682,-1100.57,0.00028088,2]
[341584928,1731009061692,-500.0,0.00028088,2]
[341584929,1731009061702,-500.0,0.00028088,2]
[341584930,1731009061711,-576.4,0.00028088,2]
[341584931,1731009061722,-853.43,0.00028088,2]
[341584932,1731009061731,-500.0,0.00028088,2]
[341584933,1731009061741,-500.0,0.00028088,2]
[341584934,1731009061751,-500.0,0.00028088,2]
[341584935,1731009061760,-227.887751,0.00028088,2]
[341584936,1731009061770,-500.0,0.00028088,2]
[341584937,1731009061779,-688.62,0.00028088,2]
[341584938,1731009061789,-500.0,0.00028088,2]
[341584939,1731009061799,-155.474606,0.00028088,2]
[341584940,1731009061808,-563.05,0.00028088,2]
[341584941,1731009061817,-500.0,0.00028088,2]
[341584942,1731009061825,-847.09,0.00028088,2]
[341584943,1731009061835,-500.0,0.00028088,2]
[341584944,1731009061844,-810.19,0.00028088,2]
[341584945,1731009061854,-722.61,0.00028088,2]
[341584946,1731009061864,-567.7,0.00028088,2]
[341584947,1731009061873,-500.0,0.00028088,2]
[341584948,1731009061883,-500.0,0.00028088,2]
[341584949,1731009061893,-410.17,0.00028088,2]
[341584950,1731009061902,-500.0,0.00028088,2]
[341584951,1731009061913,-500.0,0.00028088,2]
[341584952,1731009061923,-566.78,0.00028088,2]
[341584953,1731009061932,-500.0,0.00028088,2]
[341584954,1731009061942,-500.0,0.00028088,2]
[341584955,1731009061951,-500.0,0.00028088,2]
[341584956,1731009061961,-500.0,0.00028088,2]
[341584957,1731009061971,-586.91,0.00028088,2]
[341584958,1731009061981,-556.44,0.00028088,2]
[341584959,1731009061991,-500.0,0.00028088,2]
[341584960,1731009062000,-500.0,0.00028088,2]
[341584961,1731009062010,-614.78,0.00028088,2]
[341584962,1731009062020,-713.48,0.00028088,2]
[341584963,1731009062030,-1794.34,0.00028088,2]
[341584964,1731009062040,-866.4,0.00028088,2]
[341584965,1731009062049,-968.56,0.00028088,2]
[341584966,1731009062059,-914.66,0.00028088,2]
[341584967,1731009062069,-500.0,0.00028088,2]
[341584968,1731009062079,-564.95,0.00028088,2]
[341584969,1731009062088,-500.0,0.00028088,2]
[341584970,1731009062098,-500.0,0.00028088,2]
[341584971,1731009062108,-500.0,0.00028088,2]
[341584972,1731009062118,-562.4,0.00028088,2]
[341584973,1731009062128,-500.0,0.00028088,2]
[341584974,1731009062138,-500.0,0.00028088,2]
[341584975,1731009062147,-500.0,0.00028088,2]
[341584976,1731009062157,-500.0,0.00028088,2]
[341584977,1731009062168,-500.0,0.00028088,2]
[341584978,1731009062177,-500.0,0.00028088,2]
[341584979,1731009062187,-520.24,0.00028088,2]
[341584980,1731009062197,-500.0,0.00028088,2]
[341584981,1731009062207,-500.0,0.00028088,2]
[341584982,1731009062217,-500.0,0.00028088,2]
[341584983,1731009062227,-500.0,0.00028088,2]
[341584984,1731009062238,-7381.1,0.00028088,2]
[341584985,1731009062249,-500.0,0.00028088,2]
[341584986,1731009062259,-500.0,0.00028088,2]
[341584987,1731009062269,-500.0,0.00028088,2]
[341584988,1731009062279,-558.86,0.00028088,2]
[341584989,1731009062290,-659.34,0.00028088,2]
[341584990,1731009062301,-723.63,0.00028088,2]
[341584991,1731009062312,-500.0,0.00028088,2]
[341584992,1731009062323,-1212.12,0.00028088,2]
[341584993,1731009062333,-537.65,0.00028088,2]
[341584994,1731009062343,-500.0,0.00028088,2]
[341584995,1731009062352,-500.0,0.00028088,2]
[341584996,1731009062361,-500.0,0.00028088,2]
[341584997,1731009062374,-604.8,0.00028088,2]
[341584998,1731009062383,-993.32,0.00028088,2]
[341584999,1731009062394,-500.0,0.00028088,2]
[341585000,1731009062403,-500.0,0.00028088,2]
[341585001,1731009062413,-2218.52,0.00028088,2]
[341585002,1731009062422,-1188.12,0.00028088,2]
[341585003,1731009062432,-2223.72,0.00028088,2]
[341585004,1731009062442,-500.0,0.00028088,2]
[341585005,1731009062451,-500.0,0.00028088,2]
[341585006,1731009062461,-783.15,0.00028088,2]
[341585007,1731009062471,-500.0,0.00028088,2]
[341585008,1731009062480,-605.13,0.00028088,2]
[341585009,1731009062490,-1000.3,0.00028088,2]
[341585010,1731009062500,-538.46,0.00028088,2]
[341585011,1731009062509,-151.0,0.00028088,7]
[341585012,1731009062519,-500.0,0.00028088,2]
[341585013,1731009062529,-15040.33,0.00028088,2]
[341585014,1731009062538,-2064.675373,0.00028088,7]
[341585015,1731009062547,-2064.675373,0.00028088,7]
[341585016,1731009062558,-576.34,0.00028088,2]
[341585017,1731009062567,-500.0,0.00028088,2]
[341585018,1731009062578,-500.0,0.00028088,2]
[341585019,1731009062588,-1169.55,0.00028088,2]
[341585020,1731009062598,-500.0,0.00028088,2]
[341585021,1731009062607,-500.0,0.00028088,2]
[341585022,1731009062619,-689.05,0.00028088,2]
[341585023,1731009062629,-946.04,0.00028088,2]
[341585024,1731009062638,-500.0,0.00028088,2]
[341585025,1731009062647,-500.0,0.00028088,2]
[341585026,1731009062657,-884.49,0.00028088,2]
[341585027,1731009062666,-4793.73,0.00028088,2]
[341585028,1731009062676,-500.0,0.00028088,2]
[341585029,1731009062686,-500.0,0.00028088,2]
[341585030,1731009062695,-946.61,0.00028088,2]
[341585031,1731009062705,-1050.77,0.00028088,2]
[341585032,1731009062715,-500.0,0.00028088,2]
[341585033,1731009062725,-151.0,0.00028088,7]
[341585034,1731009062735,-500.0,0.00028088,2]
[341585035,1731009062745,-500.0,0.00028088,2]
[341585036,1731009062754,-925.72,0.00028088,2]
[341585037,1731009062764,-646.84,0.00028088,2]
[341585038,1731009062773,-500.0,0.00028088,2]
[341585039,1731009062783,-500.0,0.00028088,2]
[341585040,1731009062793,-500.0,0.00028088,2]
[341585041,1731009062803,-958.67,0.00028088,2]
[341585042,1731009062813,-770.22,0.00028088,2]
[341585043,1731009062823,-500.0,0.00028088,2]
[341585044,1731009062833,-500.0,0.00028088,2]
[341585045,1731009062842,-500.0,0.00028088,2]
[341585046,1731009062852,-500.0,0.00028088,2]
[341585047,1731009063181,-500.0,0.00028088,2]
[341585048,1731009063204,-2663.84,0.00028088,2]
[341585049,1731009063216,-500.0,0.00028088,2]
[341585050,1731009063227,-876.52,0.00028088,2]
[341585051,1731009063238,-529.46,0.00028088,2]
[341585052,1731009063251,-500.0,0.00028088,2]
[341585053,1731009063261,-151.0,0.00028088,7]
[341585054,1731009063272,-947.95,0.00028088,2]
[341585055,1731009063281,-610.22,0.00028088,2]
[341585056,1731009063292,-1547.77,0.00028088,2]
[341585057,1731009063302,-980.85,0.00028088,2]
[341585058,1731009063312,-500.0,0.00028088,2]
[341585059,1731009063322,-500.0,0.00028088,2]
[341585060,1731009063333,-500.0,0.00028088,2]
[341585061,1731009063344,-526.89,0.00028088,2]
[341585062,1731009063354,-4321.64,0.00028088,2]
[341585063,1731009063364,-500.0,0.00028088,2]
[341585064,1731009063376,-762.52,0.00028088,2]
[341585065,1731009063386,-205.230666,0.00028088,7]
[341585066,1731009063396,-205.230666,0.00028088,7]
[341585067,1731009063406,-200.0,0.00028088,2]
[341585068,1731009063415,-832.52,0.00028088,2]
[341585069,1731009063424,-1380.78,0.00028088,2]
[341585070,1731009063434,-981.05,0.00028088,2]
[341585071,1731009063444,-2499.07,0.00028088,2]
[341585072,1731009063454,-275.965334,0.00028088,7]
[341585073,1731009063464,-500.0,0.00028088,2]
[341585074,1731009063474,-1184.99,0.00028088,2]
[341585075,1731009063484,-833.79,0.00028088,2]
[341585076,1731009063494,-506.89,0.00028088,2]
[341585077,1731009063504,-275.965334,0.00028088,7]
[341585078,1731009063514,-945.02,0.00028088,2]
[341585079,1731009063524,-500.0,0.00028088,2]
[341585080,1731009063534,-709.37,0.00028088,2]
[341585081,1731009063544,-669.17,0.00028088,2]
[341585082,1731009063554,-580.75,0.00028088,2]
[341585083,1731009063563,-500.0,0.00028088,2]
[341585084,1731009063573,-1420.02,0.00028088,2]
[341585085,1731009063584,-500.0,0.00028088,2]
[341585086,1731009063597,-2582.88,0.00028088,2]
[341585087,1731009063607,-500.0,0.00028088,2]
[341585088,1731009063619,-4566.85,0.00028088,2]
[341585089,1731009063630,-500.0,0.00028088,2]
[341585090,1731009063640,-500.0,0.00028088,2]
[341585091,1731009063650,-151.0,0.00028088,7]
[341585092,1731009063660,-792.9,0.00028088,2]
[341585093,1731009063670,-902.26,0.00028088,2]
[341585094,1731009063680,-1172.25,0.00028088,2]
[341585095,1731009063691,-500.0,0.00028088,2]
[341585096,1731009063701,-966.35,0.00028088,2]
[341585097,1731009063710,-1152.1,0.00028088,2]
[341585098,1731009063720,-500.02,0.00028088,2]
[341585099,1731009063730,-549.23,0.00028088,2]
[341585100,1731009063740,-500.0,0.00028088,2]
[341585101,1731009063750,-500.0,0.00028088,2]
[341585102,1731009063760,-3636.996984,0.00028088,7]
[341585103,1731009063770,-500.0,0.00028088,2]
[341585104,1731009063780,-500.0,0.00028088,2]
[341585105,1731009063790,-3636.996984,0.00028088,7]
[341585106,1731009063799,-3271.85,0.00028088,2]
[341585107,1731009063809,-500.0,0.00028088,2]
[341585108,1731009063819,-938.55,0.00028088,2]
[341585109,1731009063828,-883.76,0.00028088,2]
[341585110,1731009063838,-531.16,0.00028088,2]
[341585111,1731009063849,-500.0,0.00028088,2]
[341585112,1731009063858,-500.0,0.00028088,2]
[341585113,1731009063870,-530.41,0.00028088,2]
[341585114,1731009063879,-500.0,0.00028088,2]
[341585115,1731009063888,-1570.27,0.00028088,2]
[341585116,1731009063897,-500.0,0.00028088,2]
[341585117,1731009063907,-1609.49,0.00028088,2]
[341585118,1731009063916,-598.3,0.00028088,2]
[341585119,1731009063926,-500.0,0.00028088,2]
[341585120,1731009063936,-169.76846182,0.00028114,2]
[341585121,1731009063946,-172.52333341,0.00028144,2]
[341585122,1731009063955,-164.56,0.00028147,2]
[341585123,1731009063965,-193.48962122,0.00028161,2]
[341585124,1731009063974,-500.0,0.00028164,7]
[341585125,1731009063984,-1800.0,0.00028164,7]
[341585126,1731009063993,-4400.0,0.00028164,7]
[341585127,1731009064003,-2800.0,0.00028164,7]
[341585128,1731009064013,-4205.97784,0.0002818,2]
[341585129,1731009064023,-171.57046906,0.00028187,2]
[341585130,1731009064032,-1837.53,0.00028188,2]
[341585131,1731009064042,-2138.63,0.00028188,2]
[341585132,1731009064051,-872.54564883,0.00028188,2]
[341585133,1731009064061,-713.83790163,0.00028188,2]
[341585134,1731009064071,-155.25188086,0.00028205,2]
[341585135,1731009064081,-500.0,0.00028214,2]
[341585136,1731009064090,-299.99241415,0.00028214,2]
[341585137,1731009064100,-231.54215286,0.00028214,2]
[341585138,1731009064109,-500.0,0.00028214,2]
[341585139,1731009064122,-500.0,0.00028214,2]
[341585140,1731009064131,-500.0,0.00028214,2]
[341585141,1731009064142,-500.0,0.00028214,2]
[341585142,1731009064152,-500.0,0.00028214,2]
[341585143,1731009064161,-500.0,0.00028214,2]
[341585144,1731009064171,-500.0,0.00028214,2]
[341585145,1731009064181,-500.0,0.00028214,2]
[341585146,1731009064191,-500.0,0.00028214,2]
[341585147,1731009064200,-500.0,0.00028214,2]
[341585148,1731009064210,-501.62267665,0.00028214,2]
[341585149,1731009064220,-500.0,0.00028214,2]
[341585150,1731009064232,-500.0,0.00028214,2]
[341585151,1731009064252,-500.0,0.00028214,2]
[341585152,1731009064272,-978.15,0.00028214,2]
[341585153,1731009064292,-500.0,0.00028214,2]
[341585154,1731009064309,-500.0,0.00028214,2]
[341585155,1731009064318,-571.87581858,0.00028214,2]
[341585156,1731009064328,-1112.4,0.00028214,2]
[341585157,1731009064338,-500.0,0.00028214,2]
[341585158,1731009064348,-527.43280531,0.00028214,2]
[341585159,1731009064359,-249.98660222,0.00028214,2]
[341585160,1731009064370,-500.0,0.00028214,2]
[341585161,1731009064383,-500.0,0.00028214,2]
[341585162,1731009064393,-500.0,0.00028214,2]
[341585163,1731009064402,-923.06,0.00028214,2]
[341585164,1731009064411,-500.93068885,0.00028214,2]
[341585165,1731009064421,-500.0,0.00028214,2]
[341585166,1731009064431,-500.75092122,0.00028214,2]
[341585167,1731009064440,-578.92,0.00028214,2]
[341585168,1731009064450,-366.07264113,0.00028214,2]
[341585169,1731009064459,-500.0,0.00028214,2]
[341585170,1731009064470,-692.1,0.00028214,2]
[341585171,1731009064479,-500.0,0.00028214,2]
[341585172,1731009064489,-500.0,0.00028214,2]
[341585173,1731009064499,-500.0,0.00028214,2]
[341585174,1731009064508,-500.0,0.00028214,2]
[341585175,1731009064518,-500.0,0.00028214,2]
[341585176,1731009064527,-678.83,0.00028214,2]
[341585177,1731009064536,-500.0,0.00028214,2]
[341585178,1731009064546,-500.0,0.00028214,2]
[341585179,1731009064555,-500.0,0.00028214,2]
[341585180,1731009064566,-500.0,0.00028214,2]
[341585181,1731009064577,-500.0,0.00028214,2]
[341585182,1731009064587,-500.0,0.00028214,2]
[341585183,1731009064595,-500.0,0.00028214,2]
[341585184,1731009064604,-500.0,0.00028214,2]
[341585185,1731009064613,-500.0,0.00028214,2]
[341585186,1731009064625,-721.5,0.00028214,2]
[341585187,1731009064634,-570.37,0.00028214,2]
[341585188,1731009064643,-500.0,0.00028214,2]
[341585189,1731009064653,-500.0,0.00028214,2]
[341585190,1731009064662,-500.0,0.00028214,2]
[341585191,1731009064672,-902.85,0.00028214,2]
[341585192,1731009064681,-500.0,0.00028214,2]
[341585193,1731009064691,-500.0,0.00028214,2]
[341585194,1731009064700,-500.0,0.00028214,2]
[341585195,1731009064710,-500.0,0.00028214,2]
[341585196,1731009064719,-596.38719351,0.00028214,2]
[341585197,1731009064729,-500.0,0.00028214,2]
[341585198,1731009064738,-634.76,0.00028214,2]
[341585199,1731009064747,-500.0,0.00028214,2]
[341585200,1731009064756,-500.0,0.00028214,2]
[341585201,1731009064765,-500.71,0.00028214,2]
[341585202,1731009064775,-1081.06,0.00028214,2]
[341585203,1731009064785,-500.0,0.00028214,2]
[341585204,1731009064795,-500.0,0.00028214,2]
[341585205,1731009064805,-500.0,0.00028214,2]
[341585206,1731009064814,-500.0,0.00028214,2]
[341585207,1731009064824,-500.0,0.00028214,2]
[341585208,1731009064833,-506.23,0.00028214,2]
[341585209,1731009064844,-500.0,0.00028214,2]
[341585210,1731009064854,-565.59,0.00028214,2]
[341585211,1731009064864,-559.3,0.00028214,2]
[341585212,1731009064876,-500.0,0.00028214,2]
[341585213,1731009064886,-4839.06,0.00028214,2]
[341585214,1731009064895,-544.31,0.00028214,2]
[341585215,1731009064904,-500.0,0.00028214,2]
[341585216,1731009064914,-971.26,0.00028214,2]
[341585217,1731009064924,-500.0,0.00028214,2]
[341585218,1731009064933,-578.62,0.00028214,2]
[341585219,1731009064942,-1354.23,0.00028214,2]
[341585220,1731009064953,-463.39,0.00028214,2]
[341585221,1731009064964,-500.0,0.00028214,2]
[341585222,1731009064975,-500.0,0.00028214,2]
[341585223,1731009064986,-500.0,0.00028214,2]
[341585224,1731009064996,-548.84,0.00028214,2]
[341585225,1731009065005,-500.0,0.00028214,2]
[341585226,1731009065013,-512.42,0.00028214,2]
[341585227,1731009065023,-738.69,0.00028214,2]
[341585228,1731009065032,-500.0,0.00028214,2]
[341585229,1731009065041,-151.0,0.00028214,7]
[341585230,1731009065051,-1284.19,0.00028214,2]
[341585231,1731009065060,-500.0,0.00028214,2]
[341585232,1731009065070,-500.0,0.00028214,2]
[341585233,1731009065079,-500.0,0.00028214,2]
[341585234,1731009065088,-500.0,0.00028214,2]
[341585235,1731009065097,-1190.53,0.00028214,2]
[341585236,1731009065107,-245.034776,0.00028214,7]
[341585237,1731009065116,-500.0,0.00028214,2]
[341585238,1731009065127,-245.034776,0.00028214,7]
[341585239,1731009065136,-599.24042692,0.00028214,2]
[341585240,1731009065146,-299.82013679,0.00028214,2]
[341585241,1731009065155,-1391.35,0.00028214,2]
[341585242,1731009065164,-500.0,0.00028214,2]
[341585243,1731009065174,-1182.92,0.00028214,2]
[341585244,1731009065183,-158.425909,0.00028214,7]
[341585245,1731009065193,-500.0,0.00028214,2]
[341585246,1731009065202,-554.19,0.00028214,2]
[341585247,1731009065212,-151.0,0.00028214,7]
[341585248,1731009065221,-500.0,0.00028214,2]
[341585249,1731009065232,-719.06,0.00028214,2]
[341585251,1731009065243,-873.23,0.00028214,2]
[341585252,1731009065254,-500.0,0.00028214,2]
[341585253,1731009065263,-151.0,0.00028214,7]
[341585254,1731009065272,-541.74,0.00028214,2]
[341585255,1731009065282,-500.0,0.00028214,2]
[341585256,1731009065292,-500.0,0.00028214,2]
[341585257,1731009065301,-500.0,0.00028214,2]
[341585258,1731009065311,-217.84602328,0.00028214,2]
[341585259,1731009065322,-300.0,0.00028214,2]
[341585260,1731009065331,-941.64,0.00028214,2]
[341585261,1731009065340,-500.0,0.00028214,2]
[341585262,1731009065350,-500.0,0.00028214,2]
[341585263,1731009065359,-1132.14,0.00028214,2]
[341585264,1731009065370,-596.15,0.00028214,2]
[341585265,1731009065380,-686.64,0.00028214,2]
[341585266,1731009065389,-649.527715,0.00028214,7]
[341585267,1731009065399,-649.527715,0.00028214,7]
[341585268,1731009065409,-772.31,0.00028214,2]
[341585269,1731009065420,-692.22,0.00028214,2]
[341585270,1731009065429,-151.0,0.00028214,7]
[341585271,1731009065439,-1050.92,0.00028214,2]
[341585272,1731009065448,-151.0,0.00028214,7]
[341585273,1731009065457,-500.0,0.00028214,2]
[341585274,1731009065466,-1241.05,0.00028214,2]
[341585275,1731009065475,-500.0,0.00028214,2]
[341585276,1731009065484,-2320.39,0.00028214,2]
[341585277,1731009065493,-500.0,0.00028214,2]
[341585278,1731009065502,-500.0,0.00028214,2]
[341585279,1731009065511,-406.6,0.00028214,2]
[341585280,1731009065521,-1405.81,0.00028214,2]
[341585281,1731009065530,-500.0,0.00028214,2]
[341585282,1731009065539,-151.0,0.00028214,7]
[341585283,1731009065548,-160.052299,0.00028214,7]
[341585284,1731009065558,-160.052299,0.00028214,7]
[341585285,1731009065567,-726.24,0.00028214,2]
[341585286,1731009065577,-500.0,0.00028214,2]
[341585287,1731009065586,-1670.09,0.00028214,2]
[341585288,1731009065595,-922.87,0.00028214,2]
[341585289,1731009065604,-151.0,0.00028214,7]
[341585290,1731009065614,-151.0,0.00028214,7]
[341585291,1731009065625,-726.18,0.00028214,2]
[341585292,1731009065634,-856.7,0.00028214,2]
[341585293,1731009065643,-500.0,0.00028214,2]
[341585294,1731009065653,-500.0,0.00028214,2]
[341585295,1731009065662,-500.0,0.00028214,2]
[341585296,1731009065670,-500.0,0.00028214,2]
[341585297,1731009065766,-1500.67,0.00028214,2]
[341585298,1731009065776,-500.0,0.00028214,2]
[341585299,1731009065785,-500.0,0.00028214,2]
[341585300,1731009065794,-541.26,0.00028214,2]
[341585301,1731009065803,-770.73,0.00028214,2]
[341585302,1731009065812,-500.0,0.00028214,2]
[341585303,1731009065821,-1837.56,0.00028214,2]
[341585304,1731009065830,-500.0,0.00028214,2]
[341585305,1731009065839,-514.95054,0.00028214,7]
[341585306,1731009065848,-677.65,0.00028214,2]
[341585307,1731009065858,-514.95054,0.00028214,7]
[341585308,1731009065867,-500.0,0.00028214,2]
[341585309,1731009065876,-500.0,0.00028214,2]
[341585310,1731009065885,-676.49,0.00028214,2]
[341585311,1731009065894,-500.0,0.00028214,2]
[341585312,1731009065903,-500.0,0.00028214,2]
[341585313,1731009065912,-151.0,0.00028214,7]
[341585314,1731009065921,-500.0,0.00028214,2]
[341585315,1731009065930,-153.139871,0.00028214,7]
[341585316,1731009065939,-151.0,0.00028214,7]
[341585317,1731009065948,-1750.58,0.00028214,2]
[341585318,1731009065957,-500.0,0.00028214,2]
[341585319,1731009065966,-500.0,0.00028214,2]
[341585320,1731009065976,-151.0,0.00028214,7]
[341585321,1731009065986,-753.15,0.00028214,2]
[341585322,1731009065996,-500.0,0.00028214,2]
[341585323,1731009066005,-1099.77,0.00028214,2]
[341585324,1731009066014,-500.0,0.00028214,2]
[341585325,1731009066023,-500.0,0.00028214,2]
[341585326,1731009066032,-969.26,0.00028214,2]
[341585327,1731009066041,-500.0,0.00028214,2]
[341585328,1731009066050,-657.63,0.00028214,2]
[341585329,1731009066059,-535.31,0.00028214,2]
[341585330,1731009066069,-849.94,0.00028214,2]
[341585331,1731009066079,-500.0,0.00028214,2]
[341585332,1731009066089,-1374.68,0.00028214,2]
[341585333,1731009066098,-1083.71,0.00028214,2]
[341585334,1731009066107,-500.0,0.00028214,2]
[341585335,1731009066115,-500.0,0.00028214,2]
[341585336,1731009066124,-245.034776,0.00028215,7]
[341585337,1731009066134,-245.034776,0.00028215,7]
[341585338,1731009066143,-151.0,0.00028215,7]
[341585339,1731009066153,-649.527715,0.00028215,7]
[341585340,1731009066163,-649.527715,0.00028215,7]
[341585341,1731009066172,-151.0,0.00028215,7]
[341585342,1731009066181,-1299.84,0.00028218,2]
[341585343,1731009066190,-2000.0,0.00028219,2]
[341585344,1731009066200,-200.0,0.00028219,2]
[341585345,1731009066209,-200.0,0.00028219,2]
[341585346,1731009066219,-817.43,0.00028219,2]
[341585347,1731009066228,-933.59,0.00028219,2]
[341585348,1731009066237,-669.38,0.00028219,2]
[341585349,1731009066251,-885.12,0.00028219,2]
[341585350,1731009066260,-500.0,0.00028219,2]
[341585351,1731009066270,-1964.76,0.00028219,2]
[341585352,1731009066279,-3199.28,0.00028219,2]
[341585353,1731009066289,-1389.25,0.00028219,2]
[341585354,1731009066298,-1453.03,0.00028219,2]
[341585355,1731009066307,-641.98,0.00028219,2]
[341585356,1731009066318,-1291.93,0.00028219,2]
[341585357,1731009066328,-511.41,0.00028219,2]
[341585358,1731009066337,-500.0,0.00028219,2]
[341585359,1731009066347,-542.26,0.00028219,2]
[341585360,1731009066356,-500.0,0.00028219,2]
[341585361,1731009066365,-843.73,0.00028219,2]
[341585362,1731009066375,-602.5,0.00028219,2]
[341585363,1731009066384,-1185.65,0.00028219,2]
[341585364,1731009066393,-1132.71,0.00028219,2]
[341585365,1731009066402,-955.21,0.00028219,2]
[341585366,1731009066412,-3007.37,0.00028219,2]
[341585367,1731009066421,-500.0,0.00028219,2]
[341585368,1731009066430,-150.0,0.0002824,2]
[341585369,1731009066439,-432.57950405,0.0002825,2]
[341585370,1731009066448,-6007.66581125,0.0002826,2]
[341585371,1731009066458,-150.0,0.00028261,2]
[341585372,1731009066467,-151.0,0.00028287,7]
[341585373,1731009066476,-151.0,0.00028287,7]
[341585374,1731009066485,-151.0,0.00028287,7]
[341585375,1731009066494,-151.0,0.00028287,7]
[341585376,1731009066503,-151.0,0.00028287,7]
[341585377,1731009066512,-151.0,0.00028287,7]
[341585378,1731009066521,-151.0,0.00028287,7]
[341585379,1731009066530,-151.0,0.00028287,7]
[341585380,1731009066539,-151.0,0.00028287,7]
[341585381,1731009066548,-297.747737,0.00028287,7]
[341585382,1731009066558,-297.747737,0.00028287,7]
[341585383,1731009066567,-151.0,0.00028287,7]
[341585384,1731009066576,-151.0,0.00028287,7]
[341585385,1731009066585,-2284.62,0.00028287,2]
[341585386,1731009066594,-1133.4,0.00028287,2]
[341585387,1731009066604,-500.0,0.00028287,2]
[341585388,1731009066614,-541.49,0.00028287,2]
[341585389,1731009066625,-860.42,0.00028287,2]
[341585390,1731009066635,-2149.13,0.00028287,2]